fUST/lending_fUST_20250227
["ID","MTS","AMOUNT","RATE_DAILY","PERIOD"]
[354657979,1740604254114,-500.0,0.0005452,30]
[354657980,1740604254124,-531.52,0.0005452,120]
[354657981,1740604254133,-500.0,0.0005452,120]
[354657982,1740604254143,-531.87,0.0005452,120]
[354657983,1740604254153,-500.0,0.0005452,120]
[354657984,1740604254163,-500.0,0.0005452,120]
[354657985,1740604254172,-1036.0,0.0005452,120]
[354657986,1740604254182,-500.0,0.0005452,120]
[354657987,1740604254192,-2074.03,0.0005452,7]
[354657988,1740604254201,-500.0,0.0005452,120]
[354657989,1740604254210,-500.0,0.0005452,120]
[354657990,1740604254219,-549.86,0.0005452,120]
[354657991,1740604254228,-536.42,0.0005452,120]
[354657992,1740604254237,-491.90002046,0.0005452,120]
[354657993,1740604254247,-500.0,0.00054525,7]
[354657994,1740604254256,-500.0,0.00054525,10]
[354657995,1740604254265,-592.0309192,0.00054593,2]
[354657996,1740604254275,-500.0,0.00054791,120]
[354657997,1740604254284,-500.0,0.00054794,120]
[354657998,1740604254293,-600.0,0.00054794,120]
[354657999,1740604254303,-600.0,0.00054794,120]
[354658000,1740604254312,-636.05,0.00054794,120]
[354658001,1740604254321,-500.0,0.00054794,120]
[354658002,1740604254331,-500.0,0.00054794,120]
[354658003,1740604254342,-500.0,0.00054794,120]
[354658004,1740604254351,-216.31,0.00054794,7]
[354658005,1740604254360,-500.0,0.00054794,120]
[354658006,1740604254370,-500.0,0.00054794,120]
[354658007,1740604254379,-152.72388183,0.00054794,120]
[354658008,1740604254388,-500.0,0.00054794,120]
[354658009,1740604254398,-500.0,0.00054794,120]
[354658010,1740604254407,-500.0,0.00054794,120]
[354658011,1740604254417,-500.0,0.00054794,120]
[354658012,1740604254426,-500.0,0.00054794,120]
[354658013,1740604254435,-500.0,0.00054794,120]
[354658014,1740604254444,-500.0,0.00054794,120]
[354658015,1740604254454,-500.0,0.00054794,120]
[354658016,1740604254463,-500.0,0.00054794,120]
[354658017,1740604254471,-564.46,0.00054794,120]
[354658018,1740604254481,-500.0,0.00054794,120]
[354658019,1740604254490,-570.1,0.00054794,120]
[354658020,1740604254499,-500.0,0.00054794,120]
[354658021,1740604254508,-500.0,0.00054794,120]
[354658022,1740604254517,-500.0,0.00054794,120]
[354658023,1740604254527,-500.0,0.00054794,120]
[354658024,1740604254536,-500.0,0.00054794,120]
[354658025,1740604254545,-500.0,0.00054794,120]
[354658026,1740604254554,-500.0,0.00054794,120]
[354658027,1740604254563,-500.0,0.00054794,120]
[354658028,1740604254572,-500.0,0.00054794,120]
[354658029,1740604254581,-500.0,0.00054794,120]
[354658030,1740604254591,-520.43,0.00054794,120]
[354658031,1740604254600,-500.0,0.00054794,120]
[354658032,1740604254610,-500.0,0.00054794,120]
[354658033,1740604254619,-553.29,0.00054794,120]
[354658034,1740604254629,-500.0,0.00054794,120]
[354658035,1740604254638,-553.03,0.00054794,120]
[354658036,1740604254647,-510.19,0.00054794,120]
[354658037,1740604254656,-500.0,0.00054794,120]
[354658038,1740604254665,-500.0,0.00054794,120]
[354658039,1740604254675,-500.0,0.00054794,120]
[354658040,1740604254684,-500.0,0.00054794,120]
[354658041,1740604254693,-500.0,0.00054794,120]
[354658042,1740604254703,-1596.19,0.00054794,3]
[354658043,1740604254712,-500.0,0.00054794,120]
[354658044,1740604254721,-500.0,0.00054794,120]
[354658045,1740604254731,-500.0,0.00054794,120]
[354658046,1740604254740,-500.0,0.00054794,120]
[354658047,1740604254749,-573.0,0.00054794,120]
[354658048,1740604254759,-1842.87,0.00054794,120]
[354658049,1740604254768,-557.18,0.00054794,120]
[354658050,1740604254778,-542.72,0.00054794,120]
[354658051,1740604254787,-500.0,0.00054794,120]
[354658052,1740604254796,-489.2146022,0.00054794,120]
[354658053,1740604254806,-500.0,0.00054794,120]
[354658054,1740604254815,-500.0,0.00054794,120]
[354658055,1740604254825,-500.0,0.00054794,120]
[354658056,1740604254834,-500.0,0.00054794,120]
[354658057,1740604254845,-500.0,0.00054794,120]
[354658058,1740604254854,-500.0,0.00054794,120]
[354658059,1740604254868,-512.51,0.00054794,120]
[354658060,1740604254878,-500.0,0.00054794,120]
[354658061,1740604254887,-530.15492975,0.00054794,120]
[354658062,1740604254897,-500.0,0.00054794,120]
[354658063,1740604254907,-500.0,0.00054794,120]
[354658064,1740604254916,-500.0,0.00054794,120]
[354658065,1740604254925,-500.0,0.00054794,120]
[354658066,1740604254936,-500.0,0.00054794,120]
[354658067,1740604254946,-500.0,0.00054794,120]
[354658068,1740604254955,-1181.45,0.00054794,120]
[354658069,1740604254964,-500.0,0.00054794,120]
[354658070,1740604254974,-500.0,0.00054794,21]
[354658071,1740604254984,-500.0,0.00054794,30]
[354658072,1740604254993,-531.52,0.00054794,120]
[354658073,1740604255003,-500.0,0.00054794,120]
[354658074,1740604255013,-531.87,0.00054794,120]
[354658075,1740604255022,-500.0,0.00054794,120]
[354658076,1740604255031,-500.0,0.00054794,120]
[354658077,1740604255041,-1036.0,0.00054794,120]
[354658078,1740604255051,-500.0,0.00054794,120]
[354658079,1740604255060,-2074.03,0.00054794,7]
[354658080,1740604255069,-500.0,0.00054794,120]
[354658081,1740604255078,-500.0,0.00054794,120]
[354658082,1740604255088,-549.86,0.00054794,120]
[354658083,1740604255098,-151.0,0.00055041,120]
[354658084,1740604255108,-200.0,0.00055042,15]
[354658085,1740604255118,-181.79631527,0.00055067,120]
[354658086,1740604255127,-500.0,0.00055067,31]
[354658087,1740604255137,-362.17799561,0.00055067,120]
[354658088,1740604255146,-500.0,0.00055067,120]
[354658089,1740604255156,-500.0,0.00055067,31]
[354658090,1740604255166,-414.99680184,0.00055067,120]
[354658091,1740604255175,-500.0,0.00055067,31]
[354658092,1740604255185,-500.0,0.00055067,120]
[354658093,1740604255194,-356.36618409,0.00055067,31]
[354658094,1740604255204,-500.0,0.00055067,120]
[354658095,1740604255214,-500.0,0.00055067,120]
[354658096,1740604255223,-500.0,0.00055068,120]
[354658097,1740604255232,-500.0,0.00055068,120]
[354658098,1740604255241,-500.0,0.00055068,120]
[354658099,1740604255250,-500.0,0.00055068,120]
[354658100,1740604255259,-216.31,0.00055068,7]
[354658101,1740604255268,-500.0,0.00055068,120]
[354658102,1740604255278,-500.0,0.00055068,120]
[354658103,1740604255288,-500.0,0.00055068,120]
[354658104,1740604255372,-500.0,0.00055068,120]
[354658105,1740604255382,-500.0,0.00055068,120]
[354658106,1740604255392,-500.0,0.00055068,120]
[354658107,1740604255402,-500.0,0.00055068,120]
[354658108,1740604255411,-500.0,0.00055068,120]
[354658109,1740604255420,-500.0,0.00055068,120]
[354658110,1740604255429,-500.0,0.00055068,120]
[354658111,1740604255439,-500.0,0.00055068,120]
[354658112,1740604255448,-564.46,0.00055068,120]
[354658113,1740604255457,-500.0,0.00055068,120]
[354658114,1740604255467,-570.1,0.00055068,120]
[354658115,1740604255475,-500.0,0.00055068,120]
[354658116,1740604255485,-324.54125621,0.00055068,120]
[354658117,1740604255494,-500.0,0.00055068,120]
[354658118,1740604255503,-437.35152032,0.00055068,120]
[354658119,1740604255512,-500.0,0.00055068,120]
[354658120,1740604255521,-500.0,0.00055068,120]
[354658121,1740604255531,-500.0,0.00055068,120]
[354658122,1740604255540,-500.0,0.00055068,120]
[354658123,1740604255549,-500.0,0.00055068,120]
[354658124,1740604255558,-500.0,0.00055068,120]
[354658125,1740604255567,-520.43,0.00055068,120]
[354658126,1740604255576,-500.0,0.00055068,120]
[354658127,1740604255586,-500.0,0.00055068,120]
[354658128,1740604255596,-553.29,0.00055068,120]
[354658129,1740604255606,-500.0,0.00055068,120]
[354658130,1740604255615,-553.03,0.00055068,120]
[354658131,1740604255625,-510.19,0.00055068,120]
[354658132,1740604255635,-500.0,0.00055068,120]
[354658133,1740604255644,-500.0,0.00055068,120]
[354658134,1740604255653,-500.0,0.00055068,120]
[354658135,1740604255665,-500.0,0.00055068,120]
[354658136,1740604255674,-500.0,0.00055068,120]
[354658137,1740604255683,-1596.19,0.00055068,3]
[354658138,1740604255693,-500.0,0.00055068,120]
[354658139,1740604255702,-500.0,0.00055068,120]
[354658140,1740604255712,-500.0,0.00055068,120]
[354658141,1740604255721,-500.0,0.00055068,120]
[354658142,1740604255731,-573.0,0.00055068,120]
[354658143,1740604255740,-1842.87,0.00055068,120]
[354658144,1740604255749,-557.18,0.00055068,120]
[354658145,1740604255759,-542.72,0.00055068,120]
[354658146,1740604255768,-500.0,0.00055068,120]
[354658147,1740604255778,-500.0,0.00055068,120]
[354658148,1740604255788,-500.0,0.00055068,120]
[354658149,1740604255798,-500.0,0.00055068,120]
[354658150,1740604255807,-500.0,0.00055068,120]
[354658151,1740604255817,-500.0,0.00055068,120]
[354658152,1740604255826,-500.0,0.00055068,120]
[354658153,1740604255836,-512.51,0.00055068,120]
[354658154,1740604255847,-500.0,0.00055068,120]
[354658155,1740604255859,-640.1,0.00055068,120]
[354658156,1740604255870,-500.0,0.00055068,120]
[354658157,1740604255880,-240.29469324,0.00055068,120]
[354658158,1740604255891,-535.02,0.00055068,120]
[354658159,1740604255901,-500.0,0.00055068,120]
[354658160,1740604255911,-500.0,0.00055068,120]
[354658161,1740604255921,-1181.45,0.00055068,120]
[354658162,1740604255931,-500.0,0.00055068,120]
[354658163,1740604255942,-500.0,0.00055068,21]
[354658164,1740604255952,-500.0,0.00055068,30]
[354658165,1740604255962,-531.52,0.00055068,120]
[354658166,1740604255972,-500.0,0.00055068,120]
[354658167,1740604255981,-531.87,0.00055068,120]
[354658168,1740604255990,-500.0,0.00055068,120]
[354658169,1740604256000,-500.0,0.00055068,120]
[354658170,1740604256010,-1036.0,0.00055068,120]
[354658171,1740604256019,-500.0,0.00055068,120]
[354658172,1740604256029,-2074.03,0.00055068,7]
[354658173,1740604256039,-500.0,0.00055068,120]
[354658174,1740604256049,-500.0,0.00055068,120]
[354658175,1740604256058,-549.86,0.00055068,120]
[354658176,1740604256067,-154.57,0.000551,30]
[354658177,1740604256077,-500.0,0.00055342,120]
[354658178,1740604256086,-500.0,0.00055342,120]
[354658179,1740604256097,-500.0,0.00055342,120]
[354658180,1740604256106,-500.0,0.00055342,120]
[354658181,1740604256116,-216.31,0.00055342,7]
[354658182,1740604256126,-500.0,0.00055342,120]
[354658183,1740604256135,-500.0,0.00055342,120]
[354658184,1740604256146,-500.0,0.00055342,120]
[354658185,1740604256156,-500.0,0.00055342,120]
[354658186,1740604256165,-500.0,0.00055342,120]
[354658187,1740604256175,-500.0,0.00055342,120]
[354658188,1740604256185,-500.0,0.00055342,120]
[354658189,1740604256194,-500.0,0.00055342,120]
[354658190,1740604256203,-500.0,0.00055342,120]
[354658191,1740604256213,-500.0,0.00055342,120]
[354658192,1740604256222,-500.0,0.00055342,120]
[354658193,1740604256231,-564.46,0.00055342,120]
[354658194,1740604256241,-500.0,0.00055342,120]
[354658195,1740604256251,-570.1,0.00055342,120]
[354658196,1740604256260,-500.0,0.00055342,120]
[354658197,1740604256269,-500.0,0.00055342,120]
[354658198,1740604256279,-404.00932695,0.00055342,120]
[354658199,1740604256288,-500.0,0.00055342,120]
[354658200,1740604256297,-500.0,0.00055342,120]
[354658201,1740604256307,-500.0,0.00055342,120]
[354658202,1740604256316,-500.0,0.00055342,120]
[354658203,1740604256325,-500.0,0.00055342,120]
[354658204,1740604256335,-520.43,0.00055342,120]
[354658205,1740604256347,-500.0,0.00055342,120]
[354658206,1740604256357,-500.0,0.00055342,120]
[354658207,1740604256366,-553.29,0.00055342,120]
[354658208,1740604256376,-500.0,0.00055342,120]
[354658209,1740604256386,-553.03,0.00055342,120]
[354658210,1740604256395,-510.19,0.00055342,120]
[354658211,1740604256405,-500.0,0.00055342,120]
[354658212,1740604256415,-500.0,0.00055342,120]
[354658213,1740604256425,-500.0,0.00055342,120]
[354658214,1740604256434,-500.0,0.00055342,120]
[354658215,1740604256444,-462.58185592,0.00055342,120]
[354658216,1740604256453,-1596.19,0.00055342,3]
[354658217,1740604256463,-500.0,0.00055342,120]
[354658218,1740604256473,-500.0,0.00055342,120]
[354658219,1740604256482,-500.0,0.00055342,120]
[354658220,1740604256492,-500.0,0.00055342,120]
[354658221,1740604256502,-573.0,0.00055342,120]
[354658222,1740604256511,-1842.87,0.00055342,120]
[354658223,1740604256520,-557.18,0.00055342,120]
[354658224,1740604256530,-542.72,0.00055342,120]
[354658225,1740604256540,-500.0,0.00055342,120]
[354658226,1740604256550,-500.0,0.00055342,120]
[354658227,1740604256560,-500.0,0.00055342,120]
[354658228,1740604256571,-216.59,0.00055342,120]
[354658229,1740604256580,-500.0,0.00055342,120]
[354658230,1740604256590,-500.0,0.00055342,120]
[354658231,1740604256599,-483.690556,0.00055342,120]
[354658232,1740604256608,-512.51,0.00055342,120]
[354658233,1740604256618,-500.0,0.00055342,120]
[354658234,1740604256628,-500.0,0.00055342,120]
[354658235,1740604256638,-500.0,0.00055342,120]
[354658236,1740604256648,-500.0,0.00055342,120]
[354658237,1740604256657,-1181.45,0.00055342,120]
[354658238,1740604256667,-500.0,0.00055342,120]
[354658239,1740604256676,-500.0,0.00055342,21]
[354658240,1740604256687,-500.0,0.00055342,30]
[354658241,1740604256696,-531.52,0.00055342,120]
[354658242,1740604256706,-500.0,0.00055342,120]
[354658243,1740604256715,-531.87,0.00055342,120]
[354658244,1740604256725,-500.0,0.00055342,120]
[354658245,1740604256734,-304.42151355,0.00055342,120]
[354658246,1740604256746,-1036.0,0.00055342,120]
[354658247,1740604256755,-500.0,0.00055342,120]
[354658248,1740604256764,-2074.03,0.00055342,7]
[354658249,1740604256773,-500.0,0.00055342,120]
[354658250,1740604256785,-500.0,0.00055342,120]
[354658251,1740604256794,-549.86,0.00055342,120]
[354658252,1740604256803,-167.275,0.00055514,120]
[354658253,1740604256812,-500.0,0.00055616,120]
[354658254,1740604256822,-500.0,0.00055616,120]
[354658255,1740604256831,-500.0,0.00055616,120]
[354658256,1740604256843,-500.0,0.00055616,120]
[354658257,1740604256854,-216.31,0.00055616,7]
[354658258,1740604256864,-500.0,0.00055616,120]
[354658259,1740604256874,-500.0,0.00055616,120]
[354658260,1740604256886,-500.0,0.00055616,120]
[354658261,1740604256895,-500.0,0.00055616,120]
[354658262,1740604256905,-174.40305399,0.00055616,120]
[354658263,1740604256915,-500.0,0.00055616,120]
[354658264,1740604256925,-500.0,0.00055616,120]
[354658265,1740604256936,-500.0,0.00055616,120]
[354658266,1740604256946,-500.0,0.00055616,120]
[354658267,1740604256955,-500.0,0.00055616,120]
[354658268,1740604256964,-500.0,0.00055616,120]
[354658269,1740604257047,-564.46,0.00055616,120]
[354658270,1740604257057,-500.0,0.00055616,120]
[354658271,1740604257067,-570.1,0.00055616,120]
[354658272,1740604257076,-500.0,0.00055616,120]
[354658273,1740604257085,-500.0,0.00055616,120]
[354658274,1740604257095,-500.0,0.00055616,120]
[354658275,1740604257104,-500.0,0.00055616,120]
[354658276,1740604257113,-500.0,0.00055616,120]
[354658277,1740604257122,-500.0,0.00055616,120]
[354658278,1740604257132,-500.0,0.00055616,120]
[354658279,1740604257141,-520.43,0.00055616,120]
[354658280,1740604257150,-500.0,0.00055616,120]
[354658281,1740604257160,-500.0,0.00055616,120]
[354658282,1740604257170,-553.29,0.00055616,120]
[354658283,1740604257180,-258.14869707,0.00055616,120]
[354658284,1740604257191,-553.03,0.00055616,120]
[354658285,1740604257201,-510.19,0.00055616,120]
[354658286,1740604257211,-500.0,0.00055616,120]
[354658287,1740604257221,-185.11539352,0.00055616,120]
[354658288,1740604257231,-500.0,0.00055616,120]
[354658289,1740604257240,-500.0,0.00055616,120]
[354658290,1740604257249,-1596.19,0.00055616,3]
[354658291,1740604257259,-500.0,0.00055616,120]
[354658292,1740604257269,-500.0,0.00055616,120]
[354658293,1740604257279,-500.0,0.00055616,120]
[354658294,1740604257288,-500.0,0.00055616,120]
[354658295,1740604257298,-573.0,0.00055616,120]
[354658296,1740604257307,-1842.87,0.00055616,120]
[354658297,1740604257316,-557.18,0.00055616,120]
[354658298,1740604257326,-542.72,0.00055616,120]
[354658299,1740604257336,-500.0,0.00055616,120]
[354658300,1740604257346,-500.0,0.00055616,120]
[354658301,1740604257356,-500.0,0.00055616,120]
[354658302,1740604257365,-220.73623303,0.00055616,120]
[354658303,1740604257375,-500.0,0.00055616,120]
[354658304,1740604257384,-512.51,0.00055616,120]
[354658305,1740604257394,-500.0,0.00055616,120]
[354658306,1740604257404,-500.0,0.00055616,120]
[354658307,1740604257413,-500.0,0.00055616,120]
[354658308,1740604257423,-500.0,0.00055616,120]
[354658309,1740604257433,-1181.45,0.00055616,120]
[354658310,1740604257442,-500.0,0.00055616,120]
[354658311,1740604257452,-503.23941906,0.00055616,21]
[354658312,1740604257462,-500.0,0.00055616,30]
[354658313,1740604257471,-531.52,0.00055616,120]
[354658314,1740604257481,-500.0,0.00055616,120]
[354658315,1740604257490,-531.87,0.00055616,120]
[354658316,1740604257499,-500.0,0.00055616,120]
[354658317,1740604257510,-1036.0,0.00055616,120]
[354658318,1740604257520,-500.0,0.00055616,120]
[354658319,1740604257530,-2074.03,0.00055616,7]
[354658320,1740604257540,-168.73937865,0.00055616,120]
[354658321,1740604257550,-500.0,0.00055616,120]
[354658322,1740604257559,-549.86,0.00055616,120]
[354658323,1740604257569,-295.11,0.000557,30]
[354658324,1740604257579,-506.58764162,0.00055889,120]
[354658325,1740604257589,-676.49,0.0005589,120]
[354658326,1740604257599,-473.32546997,0.0005589,120]
[354658327,1740604257609,-500.0,0.0005589,120]
[354658328,1740604257619,-500.0,0.0005589,120]
[354658329,1740604257631,-500.0,0.0005589,120]
[354658330,1740604257640,-500.0,0.0005589,120]
[354658331,1740604257651,-216.31,0.0005589,7]
[354658332,1740604257661,-500.0,0.0005589,120]
[354658333,1740604257671,-233.33271165,0.0005589,120]
[354658334,1740604257680,-500.0,0.0005589,120]
[354658335,1740604257690,-500.0,0.0005589,120]
[354658336,1740604257700,-500.0,0.0005589,120]
[354658337,1740604257710,-500.0,0.0005589,120]
[354658338,1740604257719,-500.0,0.0005589,120]
[354658339,1740604257729,-500.0,0.0005589,120]
[354658340,1740604257738,-500.0,0.0005589,120]
[354658341,1740604257747,-500.0,0.0005589,120]
[354658342,1740604257758,-500.0,0.0005589,120]
[354658343,1740604257767,-564.46,0.0005589,120]
[354658344,1740604257776,-500.0,0.0005589,120]
[354658345,1740604257786,-570.1,0.0005589,120]
[354658346,1740604257795,-500.0,0.0005589,120]
[354658347,1740604257805,-500.0,0.0005589,120]
[354658348,1740604257814,-500.0,0.0005589,120]
[354658349,1740604257825,-500.0,0.0005589,120]
[354658350,1740604257835,-500.0,0.0005589,120]
[354658351,1740604257847,-500.0,0.0005589,120]
[354658352,1740604257857,-520.43,0.0005589,120]
[354658353,1740604257869,-500.0,0.0005589,120]
[354658354,1740604257879,-500.0,0.0005589,120]
[354658355,1740604257890,-553.29,0.0005589,120]
[354658356,1740604257899,-553.03,0.0005589,120]
[354658357,1740604257911,-510.19,0.0005589,120]
[354658358,1740604257920,-500.0,0.0005589,120]
[354658359,1740604257930,-500.0,0.0005589,120]
[354658360,1740604257939,-500.0,0.0005589,120]
[354658361,1740604257950,-1596.19,0.0005589,3]
[354658362,1740604257960,-500.0,0.0005589,120]
[354658363,1740604257971,-500.0,0.0005589,120]
[354658364,1740604257981,-500.0,0.0005589,120]
[354658365,1740604257990,-500.0,0.0005589,120]
[354658366,1740604258000,-573.0,0.0005589,120]
[354658367,1740604258009,-1842.87,0.0005589,120]
[354658368,1740604258019,-557.18,0.0005589,120]
[354658369,1740604258029,-542.72,0.0005589,120]
[354658370,1740604258039,-500.0,0.0005589,120]
[354658371,1740604258048,-500.62146287,0.0005589,120]
[354658372,1740604258057,-262.78,0.0005589,120]
[354658373,1740604258066,-500.0,0.0005589,120]
[354658374,1740604258074,-512.51,0.0005589,120]
[354658375,1740604258083,-500.0,0.0005589,120]
[354658376,1740604258092,-500.0,0.0005589,120]
[354658377,1740604258102,-500.0,0.0005589,120]
[354658378,1740604258112,-500.0,0.0005589,120]
[354658379,1740604258121,-1181.45,0.0005589,120]
[354658380,1740604258131,-500.0,0.0005589,120]
[354658381,1740604258141,-500.0,0.0005589,30]
[354658382,1740604258151,-531.52,0.0005589,120]
[354658383,1740604258160,-500.0,0.0005589,120]
[354658384,1740604258170,-531.87,0.0005589,120]
[354658385,1740604258179,-500.0,0.0005589,120]
[354658386,1740604258188,-1036.0,0.0005589,120]
[354658387,1740604258198,-500.0,0.0005589,120]
[354658388,1740604258209,-2074.03,0.0005589,7]
[354658389,1740604258219,-500.0,0.0005589,120]
[354658390,1740604258229,-549.86,0.0005589,120]
[354658391,1740604258238,-500.0,0.00055892,15]
[354658392,1740604258249,-676.49,0.00056164,120]
[354658393,1740604258258,-500.0,0.00056164,120]
[354658394,1740604258267,-500.0,0.00056164,120]
[354658395,1740604258276,-500.0,0.00056164,120]
[354658396,1740604258286,-500.0,0.00056164,120]
[354658397,1740604258295,-216.31,0.00056164,7]
[354658398,1740604258304,-500.0,0.00056164,120]
[354658399,1740604258314,-432.99624211,0.00056164,120]
[354658400,1740604258323,-500.0,0.00056164,120]
[354658401,1740604258332,-500.0,0.00056164,120]
[354658402,1740604258342,-500.0,0.00056164,120]
[354658403,1740604258351,-500.0,0.00056164,120]
[354658404,1740604258360,-500.0,0.00056164,120]
[354658405,1740604258369,-500.0,0.00056164,120]
[354658406,1740604258378,-500.0,0.00056164,120]
[354658407,1740604258388,-500.0,0.00056164,120]
[354658408,1740604258397,-564.46,0.00056164,120]
[354658409,1740604258406,-517.78798304,0.00056164,120]
[354658410,1740604258416,-570.1,0.00056164,120]
[354658411,1740604258425,-500.0,0.00056164,120]
[354658412,1740604258435,-500.0,0.00056164,120]
[354658413,1740604258444,-500.0,0.00056164,120]
[354658414,1740604258453,-500.0,0.00056164,120]
[354658415,1740604258462,-500.0,0.00056164,120]
[354658416,1740604258471,-500.0,0.00056164,120]
[354658417,1740604258481,-520.43,0.00056164,120]
[354658418,1740604258490,-500.0,0.00056164,120]
[354658419,1740604258500,-500.0,0.00056164,120]
[354658420,1740604258579,-553.29,0.00056164,120]
[354658421,1740604258589,-553.03,0.00056164,120]
[354658422,1740604258603,-510.19,0.00056164,120]
[354658423,1740604258615,-500.0,0.00056164,120]
[354658424,1740604258625,-500.0,0.00056164,120]
[354658425,1740604258634,-500.0,0.00056164,120]
[354658426,1740604258644,-1596.19,0.00056164,3]
[354658427,1740604258654,-500.0,0.00056164,120]
[354658428,1740604258664,-457.98689309,0.00056164,120]
[354658429,1740604258674,-500.0,0.00056164,120]
[354658430,1740604258683,-500.0,0.00056164,120]
[354658431,1740604258693,-573.0,0.00056164,120]
[354658432,1740604258703,-1842.87,0.00056164,120]
[354658433,1740604258713,-557.18,0.00056164,120]
[354658434,1740604258727,-542.72,0.00056164,120]
[354658435,1740604258736,-500.0,0.00056164,120]
[354658436,1740604258745,-500.0,0.00056164,120]
[354658437,1740604258755,-512.51,0.00056164,120]
[354658438,1740604258764,-500.0,0.00056164,120]
[354658439,1740604258775,-500.0,0.00056164,120]
[354658440,1740604258785,-500.0,0.00056164,120]
[354658441,1740604258795,-1181.45,0.00056164,120]
[354658442,1740604258804,-500.0,0.00056164,120]
[354658443,1740604258814,-500.0,0.00056164,30]
[354658444,1740604258824,-531.52,0.00056164,120]
[354658445,1740604258833,-522.75378461,0.00056164,120]
[354658446,1740604258847,-531.87,0.00056164,120]
[354658447,1740604258857,-500.0,0.00056164,120]
[354658448,1740604258867,-1036.0,0.00056164,120]
[354658449,1740604258876,-500.0,0.00056164,120]
[354658450,1740604258887,-2074.03,0.00056164,7]
[354658451,1740604258896,-526.77184,0.00056164,120]
[354658452,1740604258905,-549.86,0.00056164,120]
[354658453,1740604258914,-165.03,0.000562,30]
[354658454,1740604258924,-592.0309192,0.00056409,2]
[354658455,1740604258934,-676.49,0.00056438,120]
[354658456,1740604258945,-500.0,0.00056438,120]
[354658457,1740604258955,-500.0,0.00056438,120]
[354658458,1740604258964,-500.0,0.00056438,120]
[354658459,1740604258974,-500.0,0.00056438,120]
[354658460,1740604258983,-216.31,0.00056438,7]
[354658461,1740604258992,-500.0,0.00056438,120]
[354658462,1740604259001,-500.0,0.00056438,120]
[354658463,1740604259010,-500.0,0.00056438,120]
[354658464,1740604259020,-500.0,0.00056438,120]
[354658465,1740604259029,-500.0,0.00056438,120]
[354658466,1740604259038,-325.09686761,0.00056438,120]
[354658467,1740604259047,-500.0,0.00056438,120]
[354658468,1740604259056,-384.05773141,0.00056438,120]
[354658469,1740604259065,-500.0,0.00056438,120]
[354658470,1740604259075,-564.46,0.00056438,120]
[354658471,1740604259084,-570.1,0.00056438,120]
[354658472,1740604259095,-271.67370485,0.00056438,120]
[354658473,1740604259104,-500.0,0.00056438,120]
[354658474,1740604259113,-500.0,0.00056438,120]
[354658475,1740604259123,-500.0,0.00056438,120]
[354658476,1740604259132,-500.0,0.00056438,120]
[354658477,1740604259141,-500.0,0.00056438,120]
[354658478,1740604259151,-520.43,0.00056438,120]